fUSD/lending_fUSD_20260513
["ID","MTS","AMOUNT","RATE_DAILY","PERIOD"]
[422187228,1778665838000,-500.0,0.00014847,2]
[422187231,1778665838000,-18117.25917438,0.0001485,2]
[422187233,1778665838000,-214.91342137,0.00014855,2]
[422187234,1778665838000,-208.27114069,0.00014864,2]
[422187168,1778665838000,-500.0,0.00014541,2]
[422187204,1778665838000,-500.0,0.00014709,2]
[422187203,1778665838000,-7950.07458159,0.00014701,2]
[422187232,1778665838000,-7950.07458159,0.0001485,2]
[422187201,1778665838000,-1300.0,0.000147,5]
[422187170,1778665838000,-244.79909942,0.00014541,2]
[422187173,1778665838000,-500.0,0.00014541,2]
[422187172,1778665838000,-522.22542556,0.00014541,2]
[422187174,1778665838000,-500.0,0.00014541,2]
[422187175,1778665838000,-500.0,0.00014541,2]
[422187178,1778665838000,-18117.25917438,0.00014552,2]
[422187188,1778665838000,-300.0,0.0001456,2]
[422187189,1778665838000,-383.89,0.000146,2]
[422187191,1778665838000,-1000.0,0.000146,5]
[422187181,1778665838000,-300.0,0.00014556,2]
[422187180,1778665838000,-300.0,0.00014556,2]
[422187186,1778665838000,-282.63591682,0.00014556,2]
[422187185,1778665838000,-167.73312861,0.00014556,2]
[422187184,1778665838000,-300.0,0.00014556,2]
[422187177,1778665838000,-2500000.0,0.00014542,2]
[422187182,1778665838000,-300.0,0.00014556,2]
[422187202,1778665838000,-18117.25917438,0.00014701,2]
[422187179,1778665838000,-7950.07458159,0.00014552,2]
[422187199,1778665838000,-542.77961232,0.00014676,2]
[422187197,1778665838000,-7950.07458159,0.00014651,2]
[422187198,1778665838000,-500.0,0.00014664,2]
[422187193,1778665838000,-7950.07458159,0.00014601,2]
[422187200,1778665838000,-2200.0,0.000147,5]
[422187195,1778665838000,-150.0,0.0001464,2]
[422187192,1778665838000,-18117.25917438,0.00014601,2]
[422187194,1778665838000,-150.0,0.00014612,2]
[422187190,1778665838000,-1700.0,0.000146,5]
[422187183,1778665838000,-300.0,0.00014556,2]
[422187187,1778665838000,-600.0,0.0001456,2]
[422187196,1778665838000,-18117.25917438,0.00014651,2]
[422187271,1778665839000,-200.0,0.000149,5]
[422187280,1778665839000,-403.0,0.00014988,2]
[422187277,1778665839000,-150.00000001,0.00014986,2]
[422187278,1778665839000,-156.99306241,0.00014986,2]
[422187275,1778665839000,-150.0,0.00014986,2]
[422187273,1778665839000,-403.0,0.00014916,2]
[422187274,1778665839000,-500.0,0.00014938,2]
[422187265,1778665839000,-500.0,0.00014899,2]
[422187267,1778665839000,-18117.25917438,0.000149,2]
[422187272,1778665839000,-191.98255793,0.000149,2]
[422187276,1778665839000,-171.07198398,0.00014986,2]
[422187266,1778665839000,-271.67005628,0.00014899,2]
[422187288,1778665839000,-300.0,0.00014999,2]
[422187300,1778665839000,-500.0,0.00015397,2]
[422187281,1778665839000,-250.9018014,0.0001499,2]
[422187282,1778665839000,-116605.3733273,0.00014994,2]
[422187283,1778665839000,-2331.1268104,0.00014994,2]
[422187285,1778665839000,-300.0,0.00014999,2]
[422187286,1778665839000,-300.0,0.00014999,2]
[422187284,1778665839000,-1787.3624537,0.00014994,2]
[422187287,1778665839000,-324.23525548,0.00014999,2]
[422187295,1778665839000,-570.38,0.00015068,2]
[422187297,1778665839000,-500.0,0.00015212,2]
[422187292,1778665839000,-200.0,0.00015,2]
[422187294,1778665839000,-151.0,0.00015,2]
[422187298,1778665839000,-2000.0,0.00015346,2]
[422187268,1778665839000,-500.0,0.000149,5]
[422187290,1778665839000,-666.0,0.00014999,2]
[422187279,1778665839000,-173.05899858,0.00014986,2]
[422187269,1778665839000,-7950.07458159,0.000149,2]
[422187245,1778665839000,-500.0,0.00014897,2]
[422187256,1778665839000,-500.0,0.00014899,2]
[422187291,1778665839000,-5279557.76804146,0.00015,2]
[422187240,1778665839000,-500.0,0.00014897,2]
[422187237,1778665839000,-18693.59605216,0.00014894,2]
[422187239,1778665839000,-500.0,0.00014897,2]
[422187238,1778665839000,-500.0,0.00014897,2]
[422187235,1778665839000,-160.0,0.00014864,2]
[422187236,1778665839000,-150.0,0.00014871,2]
[422187242,1778665839000,-500.0,0.00014897,2]
[422187243,1778665839000,-500.0,0.00014897,2]
[422187241,1778665839000,-500.0,0.00014897,2]
[422187244,1778665839000,-500.0,0.00014897,2]
[422187246,1778665839000,-500.0,0.00014897,2]
[422187250,1778665839000,-500.0,0.00014897,2]
[422187270,1778665839000,-542.77961232,0.000149,2]
[422187248,1778665839000,-500.0,0.00014897,2]
[422187249,1778665839000,-500.0,0.00014897,2]
[422187251,1778665839000,-500.0,0.00014897,2]
[422187264,1778665839000,-500.0,0.00014899,2]
[422187258,1778665839000,-500.0,0.00014899,2]
[422187263,1778665839000,-500.0,0.00014899,2]
[422187260,1778665839000,-500.0,0.00014899,2]
[422187255,1778665839000,-500.0,0.00014899,2]
[422187257,1778665839000,-500.0,0.00014899,2]
[422187253,1778665839000,-263.16091522,0.00014897,2]
[422187259,1778665839000,-507.77368398,0.00014899,2]
[422187254,1778665839000,-500.0,0.00014899,2]
[422187261,1778665839000,-500.0,0.00014899,2]
[422187262,1778665839000,-500.0,0.00014899,2]
[422187247,1778665839000,-500.0,0.00014897,2]
[422187296,1778665839000,-200.0,0.0001515,2]
[422187252,1778665839000,-500.0,0.00014897,2]
[422187293,1778665839000,-849.82470837,0.00015,2]
[422187342,1778665839000,-151.0,0.00017138,2]
[422187335,1778665839000,-151.0,0.00017138,2]
[422187334,1778665839000,-500.0,0.00017138,2]
[422187343,1778665839000,-151.0,0.00017138,2]
[422187336,1778665839000,-500.0,0.00017138,2]
[422187338,1778665839000,-500.0,0.00017138,2]
[422187340,1778665839000,-387.77578206,0.00017138,2]
[422187341,1778665839000,-151.0,0.00017138,2]
[422187339,1778665839000,-151.0,0.00017138,2]
[422187344,1778665839000,-151.0,0.00017138,2]
[422187346,1778665839000,-151.0,0.00017138,2]
[422187348,1778665839000,-151.0,0.00017138,2]
[422187347,1778665839000,-151.0,0.00017138,2]
[422187356,1778665839000,-156.92,0.00017494,2]
[422187355,1778665839000,-351.04386864,0.00017288,2]
[422187345,1778665839000,-151.0,0.00017138,2]
[422187349,1778665839000,-202.07076129,0.00017138,2]
[422187350,1778665839000,-151.0,0.00017138,2]
[422187357,1778665839000,-200.0,0.00017686,2]
[422187351,1778665839000,-151.0,0.00017138,2]
[422187352,1778665839000,-151.0,0.00017138,2]
[422187353,1778665839000,-151.0,0.00017138,2]
[422187354,1778665839000,-1934.38338737,0.00017138,2]
[422187361,1778665839000,-736.0,0.00017911,2]
[422187360,1778665839000,-155.0,0.00017879,2]
[422187299,1778665839000,-255.0,0.00015387,2]
[422187358,1778665839000,-2005.9555727,0.00017686,2]
[422187359,1778665839000,-792.03742242,0.000177,2]
[422187363,1778665839000,-3292.0,0.00017951,2]
[422187337,1778665839000,-151.0,0.00017138,2]
[422187331,1778665839000,-151.0,0.00017138,2]
[422187362,1778665839000,-3143.98491666,0.00017916,2]
[422187332,1778665839000,-151.0,0.00017138,2]
[422187333,1778665839000,-151.0,0.00017138,2]
[422187302,1778665839000,-500.0,0.0001576,2]
[422187304,1778665839000,-1352.19484797,0.00015989,2]
[422187301,1778665839000,-500.0,0.00015486,2]
[422187314,1778665839000,-570.38,0.00016438,2]
[422187313,1778665839000,-500.0,0.00016438,2]
[422187312,1778665839000,-345.54079373,0.00016438,2]
[422187307,1778665839000,-3143.98491666,0.00016184,2]
[422187308,1778665839000,-2351.0,0.00016319,2]
[422187305,1778665839000,-300.0,0.00016,2]
[422187311,1778665839000,-712.7,0.00016438,2]
[422187310,1778665839000,-166.05,0.00016406,2]
[422187306,1778665839000,-642.85187143,0.00016034,2]
[422187309,1778665839000,-155.0,0.00016389,2]
[422187303,1778665839000,-500.0,0.000159,5]
[422187317,1778665839000,-433.0,0.00016599,2]
[422187316,1778665839000,-13049.1056354,0.000165,2]
[422187325,1778665839000,-200.0,0.00017138,2]
[422187321,1778665839000,-189.51,0.00016712,2]
[422187329,1778665839000,-151.0,0.00017138,2]
[422187319,1778665839000,-152.81,0.00016639,2]
[422187324,1778665839000,-2000.0,0.00017051,2]
[422187322,1778665839000,-190.55,0.00016863,2]
[422187318,1778665839000,-190.25,0.00016608,2]
[422187315,1778665839000,-4441.69740947,0.000165,2]
[422187320,1778665839000,-383.89,0.000167,2]
[422187330,1778665839000,-151.0,0.00017138,2]
[422187328,1778665839000,-254.03155028,0.00017138,2]
[422187327,1778665839000,-151.0,0.00017138,2]
[422187326,1778665839000,-500.0,0.00017138,2]
[422187396,1778665840000,-1066.44,0.000189,2]
[422187408,1778665840000,-888.56,0.00019078,2]
[422187392,1778665840000,-2000.0,0.00018756,2]
[422187395,1778665840000,-383.89,0.000188,2]
[422187397,1778665840000,-5229.10594576,0.00019,2]
[422187399,1778665840000,-2890.28722053,0.00019,2]
[422187401,1778665840000,-926.0,0.00019078,2]
[422187402,1778665840000,-1353.0,0.00019078,2]
[422187403,1778665840000,-3541.0,0.00019078,2]
[422187400,1778665840000,-625.0,0.00019078,2]
[422187404,1778665840000,-151.154,0.00019078,2]
[422187398,1778665840000,-2890.28722053,0.00019,2]
[422187415,1778665840000,-500.0,0.00019178,2]
[422187406,1778665840000,-1239.129,0.00019078,2]
[422187409,1778665840000,-1075.987,0.00019078,2]
[422187405,1778665840000,-1269.0,0.00019078,2]
[422187407,1778665840000,-174.093,0.00019078,2]
[422187412,1778665840000,-500.0,0.00019178,2]
[422187419,1778665840000,-500.0,0.00019178,2]
[422187414,1778665840000,-500.0,0.00019178,2]
[422187413,1778665840000,-500.0,0.00019178,2]
[422187411,1778665840000,-3000.0,0.00019178,2]
[422187418,1778665840000,-500.0,0.00019178,2]
[422187416,1778665840000,-500.0,0.00019178,2]
[422187393,1778665840000,-190.24,0.00018774,2]
[422187410,1778665840000,-155.0,0.00019178,2]
[422187394,1778665840000,-2157.14243826,0.00018782,2]
[422187378,1778665840000,-152.81,0.00018302,2]
[422187390,1778665840000,-759.82447879,0.00018673,2]
[422187364,1778665840000,-150.0,0.00017966,2]
[422187367,1778665840000,-300.0,0.00017999,2]
[422187365,1778665840000,-169.29,0.00017986,2]
[422187366,1778665840000,-300.0,0.00017999,2]
[422187370,1778665840000,-350.0,0.00018,2]
[422187371,1778665840000,-1258.41533419,0.00018,2]
[422187369,1778665840000,-500.93979012,0.00018,2]
[422187368,1778665840000,-110723.35722909,0.00018,2]
[422187374,1778665840000,-1799.65400928,0.000181,2]
[422187372,1778665840000,-500.0,0.00018055,2]
[422187384,1778665840000,-712.7,0.0001841,2]
[422187373,1778665840000,-150.0,0.00018058,2]
[422187383,1778665840000,-1258.41533419,0.000184,2]
[422187375,1778665840000,-1258.41533419,0.000182,2]
[422187377,1778665840000,-2080.17592889,0.00018234,2]
[422187379,1778665840000,-300.0,0.00018355,2]
[422187380,1778665840000,-89494.22,0.00018356,2]
[422187381,1778665840000,-150.0,0.00018364,2]
[422187376,1778665840000,-200.0,0.00018234,2]
[422187382,1778665840000,-150.0,0.000184,2]
[422187386,1778665840000,-222.52,0.00018526,2]
[422187391,1778665840000,-1258.41533419,0.000187,2]
[422187388,1778665840000,-150.99,0.00018533,2]
[422187385,1778665840000,-1258.41533419,0.000185,2]
[422187387,1778665840000,-9999.99,0.00018533,2]
[422187389,1778665840000,-7879.38,0.00018533,2]
[422187420,1778665840000,-500.0,0.00019178,2]
[422187417,1778665840000,-500.0,0.00019178,2]
[422187423,1778665840000,-2236.95670848,0.0001933,2]
[422187457,1778665840000,-510.42492008,0.00020305,2]
[422187460,1778665840000,-2405.55389864,0.00020426,2]
[422187462,1778665840000,-2000.0,0.00020461,2]
[422187451,1778665840000,-229.0,0.0002,2]
[422187454,1778665840000,-2721.62,0.0002,2]
[422187452,1778665840000,-151.0,0.0002,2]
[422187455,1778665840000,-1984.0,0.0002,2]
[422187461,1778665840000,-500.0,0.00020438,2]
[422187458,1778665840000,-712.7,0.00020381,2]
[422187459,1778665840000,-1644.17164296,0.000204,2]
[422187456,1778665840000,-190.55,0.00020235,2]
[422187463,1778665840000,-156.0,0.00020547,2]
[422187464,1778665840000,-4914.07,0.00020548,2]
[422187468,1778665840000,-4914.07,0.00020548,2]
[422187465,1778665840000,-4914.07,0.00020548,2]
[422187466,1778665840000,-4914.07,0.00020548,2]
[422187469,1778665840000,-4914.07,0.00020548,2]
[422187472,1778665840000,-4914.07,0.00020548,2]
[422187470,1778665840000,-4914.07,0.00020548,2]
[422187471,1778665840000,-4914.07,0.00020548,2]
[422187473,1778665840000,-4914.07,0.00020548,2]
[422187474,1778665840000,-4914.07,0.00020548,2]
[422187475,1778665840000,-4914.07,0.00020548,2]
[422187476,1778665840000,-4914.07,0.00020548,2]
[422187421,1778665840000,-7258.69,0.00019178,2]
[422187453,1778665840000,-158.0,0.0002,2]
[422187446,1778665840000,-2557.91,0.0002,10]
[422187467,1778665840000,-4914.07,0.00020548,2]
[422187450,1778665840000,-155.0,0.0002,2]
[422187422,1778665840000,-1252.0,0.00019322,2]
[422187448,1778665840000,-169.30535348,0.0002,2]
[422187424,1778665840000,-3143.98491666,0.00019648,2]
[422187426,1778665840000,-4609.0,0.00019746,2]
[422187425,1778665840000,-500.0,0.00019713,2]
[422187428,1778665840000,-1500.0,0.00019863,7]
[422187427,1778665840000,-247.4,0.0001975,2]
[422187430,1778665840000,-2319.72410669,0.00019878,2]
[422187429,1778665840000,-502.03651534,0.00019877,2]
[422187432,1778665840000,-152.81,0.00019966,2]
[422187434,1778665840000,-1552.61295854,0.0002,2]
[422187433,1778665840000,-7075.70391771,0.0002,2]
[422187437,1778665840000,-3950.0,0.0002,2]
[422187431,1778665840000,-158.24360289,0.00019922,2]
[422187438,1778665840000,-26757.09254126,0.0002,2]
[422187449,1778665840000,-1057.9,0.0002,5]
[422187442,1778665840000,-13007.11384877,0.0002,2]
[422187443,1778665840000,-400.0,0.0002,2]
[422187445,1778665840000,-777.0,0.0002,2]
[422187444,1778665840000,-156.0,0.0002,2]
[422187447,1778665840000,-884.0,0.0002,2]
[422187441,1778665840000,-152.0,0.0002,2]
[422187435,1778665840000,-178.65416625,0.0002,2]
[422187436,1778665840000,-25903.70260961,0.0002,2]
[422187439,1778665840000,-1310.75016125,0.0002,2]
[422187440,1778665840000,-1058.0267622,0.0002,2]
[422187517,1778665841000,-1328.27659266,0.00021092,2]
[422187518,1778665841000,-152.0,0.00021092,2]
[422187515,1778665841000,-159.0,0.00021,2]
[422187516,1778665841000,-159.0,0.00021,2]
[422187514,1778665841000,-159.0,0.00021,2]
[422187512,1778665841000,-524.99608705,0.00021,2]
[422187513,1778665841000,-159.0,0.00021,2]
[422187511,1778665841000,-500.0,0.00021,2]
[422187509,1778665841000,-158.0,0.00021,2]
[422187510,1778665841000,-1984.0,0.00021,2]
[422187519,1778665841000,-152.0,0.00021092,2]
[422187520,1778665841000,-152.0,0.00021092,2]
[422187531,1778665841000,-225.03404974,0.000215,2]
[422187537,1778665841000,-2586.85809042,0.00021522,2]
[422187524,1778665841000,-383.89,0.000211,2]
[422187528,1778665841000,-3143.98491666,0.0002138,2]
[422187526,1778665841000,-591.2,0.00021273,2]
[422187523,1778665841000,-298.52681538,0.00021092,2]
[422187522,1778665841000,-277.44923024,0.00021092,2]
[422187521,1778665841000,-152.0,0.00021092,2]
[422187529,1778665841000,-58305.8337112,0.000215,2]
[422187525,1778665841000,-6686.98,0.00021273,2]
[422187527,1778665841000,-1824.53,0.00021273,2]
[422187535,1778665841000,-469.76943466,0.000215,15]
[422187534,1778665841000,-549.55137609,0.000215,15]
[422187545,1778665841000,-151.0,0.00021711,2]
[422187503,1778665841000,-156.38295704,0.00021,2]
[422187533,1778665841000,-271.29031329,0.000215,15]
[422187499,1778665841000,-6111.0,0.00021,2]
[422187484,1778665841000,-308.0,0.000206,2]
[422187506,1778665841000,-157.22749649,0.00021,2]
[422187477,1778665841000,-4914.07,0.00020548,2]
[422187482,1778665841000,-4914.07,0.00020548,2]
[422187480,1778665841000,-4914.07,0.00020548,2]
[422187478,1778665841000,-4914.07,0.00020548,2]
[422187479,1778665841000,-4914.07,0.00020548,2]
[422187481,1778665841000,-4914.07,0.00020548,2]
[422187483,1778665841000,-4914.07,0.00020548,2]
[422187494,1778665841000,-2494.55939289,0.00020974,2]
[422187491,1778665841000,-1758.0,0.00020837,5]
[422187490,1778665841000,-1479.0,0.00020837,5]
[422187489,1778665841000,-5572.0,0.000208,2]
[422187492,1778665841000,-155.0,0.00020859,2]
[422187493,1778665841000,-1739.0,0.00020862,2]
[422187485,1778665841000,-1000.0,0.000206,2]
[422187488,1778665841000,-22951.26444433,0.000207,2]
[422187486,1778665841000,-314.0,0.000206,2]
[422187487,1778665841000,-642.0,0.000206,2]
[422187495,1778665841000,-156.92,0.00020992,2]
[422187496,1778665841000,-1208.44302373,0.00021,2]
[422187498,1778665841000,-15000.0,0.00021,2]
[422187500,1778665841000,-15000.0,0.00021,2]
[422187502,1778665841000,-9089.55065035,0.00021,2]
[422187508,1778665841000,-151.0,0.00021,2]
[422187507,1778665841000,-229.0,0.00021,2]
[422187505,1778665841000,-884.0,0.00021,2]
[422187497,1778665841000,-199.44620749,0.00021,2]
[422187504,1778665841000,-777.0,0.00021,2]
[422187501,1778665841000,-6111.0,0.00021,2]
[422187541,1778665841000,-150.185,0.00021711,2]
[422187538,1778665841000,-1377.42282659,0.0002164,2]
[422187544,1778665841000,-150.215,0.00021711,2]
[422187575,1778665841000,-290.336006,0.00022,2]
[422187578,1778665841000,-290.336006,0.00022,2]
[422187581,1778665841000,-151.0,0.00022,2]
[422187584,1778665841000,-473.418041,0.00022,2]
[422187577,1778665841000,-290.336006,0.00022,2]
[422187582,1778665841000,-473.418041,0.00022,2]
[422187583,1778665841000,-765.442738,0.00022,2]
[422187580,1778665841000,-151.0,0.00022,2]
[422187579,1778665841000,-151.0,0.00022,2]
[422187585,1778665841000,-765.442738,0.00022,2]
[422187586,1778665841000,-473.418041,0.00022,2]
[422187589,1778665841000,-765.442738,0.00022,2]
[422187588,1778665841000,-473.418041,0.00022,2]
[422187587,1778665841000,-765.442738,0.00022,2]
[422187593,1778665841000,-449.088494,0.00022,2]
[422187598,1778665841000,-267.55393,0.00022,2]
[422187591,1778665841000,-151.0,0.00022,2]
[422187590,1778665841000,-151.0,0.00022,2]
[422187592,1778665841000,-151.0,0.00022,2]
[422187597,1778665841000,-151.0,0.00022,2]
[422187596,1778665841000,-449.088494,0.00022,2]
[422187594,1778665841000,-449.088494,0.00022,2]
[422187595,1778665841000,-449.088494,0.00022,2]
[422187599,1778665841000,-267.55393,0.00022,2]
[422187601,1778665841000,-267.55393,0.00022,2]
[422187600,1778665841000,-177.916806,0.00022,2]
[422187602,1778665841000,-177.916806,0.00022,2]
[422187576,1778665841000,-290.336006,0.00022,2]
[422187571,1778665841000,-151.0,0.00022,2]
[422187536,1778665841000,-5530.0,0.000215,3]
[422187573,1778665841000,-151.0,0.00022,2]
[422187539,1778665841000,-151.184,0.00021711,2]
[422187542,1778665841000,-150.0,0.00021711,2]
[422187540,1778665841000,-150.0,0.00021711,2]
[422187543,1778665841000,-150.234,0.00021711,2]
[422187547,1778665841000,-158.24360289,0.00021761,2]
[422187558,1778665841000,-151.0,0.00022,15]
[422187560,1778665841000,-151.0,0.00022,15]
[422187574,1778665841000,-226.973432,0.00022,2]
[422187548,1778665841000,-5000.0,0.00021918,2]
[422187546,1778665841000,-6453.0,0.0002172,2]
[422187551,1778665841000,-500.0,0.00021999,2]
[422187552,1778665841000,-266660.17119196,0.00022,4]
[422187554,1778665841000,-777.0,0.00022,2]
[422187549,1778665841000,-2721.62,0.00021941,2]
[422187555,1778665841000,-884.0,0.00022,2]
[422187556,1778665841000,-151.0,0.00022,15]
[422187569,1778665841000,-151.0,0.00022,2]
[422187562,1778665841000,-155.82595511,0.00022,2]
[422187567,1778665841000,-169.09572338,0.00022,2]
[422187570,1778665841000,-161.398411,0.00022,2]
[422187565,1778665841000,-419.650515,0.00022,2]
[422187572,1778665841000,-151.0,0.00022,2]
[422187566,1778665841000,-419.650515,0.00022,2]
[422187563,1778665841000,-419.650515,0.00022,2]
[422187564,1778665841000,-419.650515,0.00022,2]
[422187561,1778665841000,-229.0,0.00022,2]
[422187553,1778665841000,-450.0,0.00022,2]
[422187568,1778665841000,-1984.0,0.00022,2]
[422187643,1778665842000,-229.0,0.00023,2]
[422187640,1778665842000,-19272.08119864,0.00023,2]
[422187646,1778665842000,-974.72733581,0.00023166,2]
[422187644,1778665842000,-1984.0,0.00023,2]
[422187642,1778665842000,-884.0,0.00023,2]
[422187634,1778665842000,-712.7,0.00022353,2]
[422187635,1778665842000,-2076.65,0.00022466,2]
[422187637,1778665842000,-2781.82699784,0.00022618,2]
[422187636,1778665842000,-32890.26958471,0.000225,2]
[422187633,1778665842000,-5530.0,0.000222,5]
[422187639,1778665842000,-4753.57756741,0.00023,2]
[422187645,1778665842000,-3143.98491666,0.00023112,2]
[422187660,1778665842000,-409.0,0.00023815,7]
[422187641,1778665842000,-777.0,0.00023,2]
[422187648,1778665842000,-496.38,0.00023344,2]
[422187650,1778665842000,-496.38,0.00023344,2]
[422187649,1778665842000,-496.38,0.00023344,2]
[422187652,1778665842000,-158.24360289,0.00023599,2]
[422187651,1778665842000,-509.49,0.00023569,2]
[422187655,1778665842000,-496.38,0.00023733,2]
[422187653,1778665842000,-309.0,0.00023717,2]
[422187659,1778665842000,-417.0,0.00023815,7]
[422187654,1778665842000,-496.39,0.00023733,2]
[422187656,1778665842000,-496.38,0.00023733,2]
[422187657,1778665842000,-496.38,0.00023733,2]
[422187631,1778665842000,-151.0,0.00022078,2]
[422187647,1778665842000,-496.39,0.00023344,2]
[422187632,1778665842000,-1520.81153152,0.00022188,2]
[422187620,1778665842000,-3541.0,0.00022078,2]
[422187629,1778665842000,-1227.829878,0.00022078,2]
[422187662,1778665842000,-2897.0,0.00023892,2]
[422187605,1778665842000,-177.916806,0.00022,2]
[422187604,1778665842000,-267.55393,0.00022,2]
[422187612,1778665842000,-664.623136,0.00022,2]
[422187609,1778665842000,-1963.82627,0.00022,2]
[422187607,1778665842000,-1963.82627,0.00022,2]
[422187611,1778665842000,-664.623136,0.00022,2]
[422187603,1778665842000,-151.0,0.00022,2]
[422187606,1778665842000,-177.916806,0.00022,2]
[422187608,1778665842000,-1963.82627,0.00022,2]
[422187610,1778665842000,-1963.82627,0.00022,2]
[422187613,1778665842000,-664.623136,0.00022,2]
[422187615,1778665842000,-151.0,0.00022,2]
[422187614,1778665842000,-664.623136,0.00022,2]
[422187616,1778665842000,-2682.57183977,0.0002207,2]
[422187625,1778665842000,-151.0,0.00022078,2]
[422187626,1778665842000,-1227.829878,0.00022078,2]
[422187624,1778665842000,-151.0,0.00022078,2]
[422187619,1778665842000,-1353.0,0.00022078,2]
[422187617,1778665842000,-625.0,0.00022078,2]
[422187618,1778665842000,-926.0,0.00022078,2]
[422187621,1778665842000,-150.0,0.00022078,2]
[422187623,1778665842000,-1223.0,0.00022078,2]
[422187622,1778665842000,-1269.0,0.00022078,2]
[422187627,1778665842000,-1227.829878,0.00022078,2]
[422187628,1778665842000,-1227.829878,0.00022078,2]
[422187638,1778665842000,-759.82447879,0.00022895,2]
[422187630,1778665842000,-151.0,0.00022078,2]
[422187672,1778665842000,-496.38,0.00024123,2]
[422187663,1778665842000,-500.0,0.00024,2]
[422187719,1778665842000,-305.0,0.00024913,2]
[422187696,1778665842000,-150.0,0.00024711,2]
[422187694,1778665842000,-1000.0,0.00024708,2]
[422187699,1778665842000,-150.0,0.00024711,2]
[422187703,1778665842000,-150.0,0.00024748,2]
[422187710,1778665842000,-3143.98491666,0.00024844,2]
[422187700,1778665842000,-150.0,0.00024711,2]
[422187702,1778665842000,-150.0,0.00024711,2]
[422187706,1778665842000,-150.0,0.00024748,2]
[422187704,1778665842000,-150.0,0.00024748,2]
[422187708,1778665842000,-181.0,0.00024748,2]
[422187701,1778665842000,-150.0,0.00024711,2]
[422187711,1778665842000,-500.0,0.00024867,2]
[422187709,1778665842000,-176.78,0.00024802,7]
[422187707,1778665842000,-150.0,0.00024748,2]
[422187721,1778665842000,-5089.69,0.0002498,2]
[422187718,1778665842000,-250.0,0.00024913,2]
[422187713,1778665842000,-250.0,0.00024913,2]
[422187720,1778665842000,-176.78,0.00024946,30]
[422187722,1778665842000,-795.83675356,0.00025,2]
[422187723,1778665842000,-884.0,0.00025,2]
[422187712,1778665842000,-250.0,0.00024913,2]
[422187714,1778665842000,-250.0,0.00024913,2]
[422187715,1778665842000,-250.0,0.00024913,2]
[422187717,1778665842000,-250.0,0.00024913,2]
[422187716,1778665842000,-250.0,0.00024913,2]
[422187673,1778665842000,-811.0,0.00024145,10]
[422187724,1778665842000,-234.09158357,0.00025,2]
[422187695,1778665842000,-723.0,0.00024708,2]
[422187689,1778665842000,-1000.0,0.00024708,2]
[422187705,1778665842000,-150.0,0.00024748,2]
[422187693,1778665842000,-1000.0,0.00024708,2]
[422187668,1778665842000,-1984.0,0.00024,2]
[422187690,1778665842000,-1000.0,0.00024708,2]
[422187667,1778665842000,-383.89,0.00024,7]
[422187666,1778665842000,-229.0,0.00024,2]
[422187670,1778665842000,-496.38,0.00024123,2]
[422187669,1778665842000,-496.39,0.00024123,2]
[422187665,1778665842000,-884.0,0.00024,2]
[422187664,1778665842000,-777.0,0.00024,2]